Cogmind - Beta 13 @@@ ROGUE MODE // 2024.07.09 @ 00:12:48 Player: Minty Result: Destroyed self with Grenade Launcher Performance ------------- Evolutions (1) 500 Regions Visited (4) 800 Robots Destroyed (70) 350 Value Destroyed (1649) 1649 Prototype IDs (4) 80 Alien Tech Used (0) 0 Bonus (-975) -975 TOTAL SCORE: 2404 Bonus ------- High Alert Combat Kills 89 Friendly Fire -1064 Cogmind --------- Core Integrity 0/400 Matter 190/300 Energy 100/100 System Corruption 2% Temperature Cool (0) Movement Flying (32) Location -9/Storage Parts ------- > --- POWER (1) -------- (None) > --- PROPULSION (2) --- VTOL Module VTOL Module > --- UTILITY (3) ------ Small Storage Unit Visual Processing Unit > --- WEAPON (3) ------- Grenade Launcher > --- INVENTORY (8) ---- Improved Treads Improved Treads Small Matter Pod (50) High-capacity Matter Pod (200) Experimental Sensor Array ECM Suite EMP Blaster Peak State ------------ > --- POWER ------------ Light Ion Engine > --- PROPULSION ------- Improved Aluminum Leg Improved Aluminum Leg > --- UTILITY ---------- Small Storage Unit Experimental Sensor Array ECM Suite > --- WEAPON ----------- Improved EM Shotgun Improved EM Shotgun Improved EM Shotgun > --- INVENTORY -------- Small Matter Pod High-capacity Matter Pod EM Pulse Gun Spread Laser EMP Blaster Grenade Launcher YI-UF0's Doublenader [Rating: 26] Favorites ----------- Power Light Ion Engine Engine Light Ion Engine Propulsion Aluminum Leg Leg Aluminum Leg Wheel Wheel Hover Unit Hover Unit Flight Unit VTOL Module Utility Small Storage Unit Device ECM Suite Storage Small Storage Unit Processor Visual Processing Unit Weapon Improved EM Shotgun Energy Gun Improved EM Shotgun Energy Cannon Particle Cannon Ballistic Gun Assault Rifle Ballistic Cannon Light Cannon Launcher EMP Blaster Build | -11 -10 -10 -9 -9 ------- Run | Yrd Mat Min Mat Sto Slots Evolved 2 | . . . 2 . Power . | . . . . . Propulsion . | . . . . . Utility 1 | . . . 1 . Weapon 1 | . . . 1 . Parts Attached 58 | . 8 8 12 30 Power 5 | . 1 1 . 3 Engine 5 | . 1 1 . 3 Core . | . . . . . Reactor . | . . . . . Propulsion 21 | . 1 1 3 16 Treads . | . . . . . Leg 12 | . . . 3 9 Wheel 2 | . 1 1 . . Hover 3 | . . . . 3 Flight 4 | . . . . 4 Utility 8 | . 1 3 1 3 Device 5 | . . 2 1 2 Storage 1 | . . 1 . . Processor 2 | . 1 . . 1 Hackware . | . . . . . Protection . | . . . . . Artifact . | . . . . . Weapon 24 | . 5 3 8 8 Energy Gun 9 | . 1 1 3 4 Energy Cannon 3 | . . . 3 . Ballistic Gun 4 | . 3 1 . . Ballistic Cannon 1 | . 1 . . . Launcher 7 | . . 1 2 4 Special Weapon . | . . . . . Impact Weapon . | . . . . . Slashing Weapon . | . . . . . Piercing Weapon . | . . . . . Special Melee Weapon . | . . . . . Unidentified Prototypes 3 | . . 2 1 . Corrupted Parts 3 | . . 2 . 1 System Corruption 14 | . . 12 . 2 Parts Lost 13 | . 4 . 2 7 Power 3 | . 1 . 1 1 Propulsion 5 | . 1 . 1 3 Utility 1 | . 1 . . . Weapon 4 | . 1 . . 3 Highest Loss Streak 5 | . 4 . 1 5 To Critical Strikes 1 | . . . . 1 Average Slot Usage (%) 77 | . 89 68 77 72 Engine 8 | . 9 3 11 7 Leg 15 | . 22 . 19 14 Wheel 2 | . 2 17 1 . Hover 1 | . . . . 3 Flight 1 | . . . . 3 Device 3 | . . 3 2 6 Storage 12 | . 14 14 11 11 Processor 5 | . 11 . . 6 Energy Gun 14 | . 13 8 12 16 Energy Cannon 1 | . . . 9 . Ballistic Gun 3 | . 6 19 . . Ballistic Cannon 2 | . 8 . . . Launcher 2 | . . . 10 2 Naked Turns . | . . . . . Heaviest Build 20 | 13 15 15 20 20 Greatest Support 26 | 20 20 20 20 26 Greatest Overweight (x) 2 | . . . 1 2 Average Overweight (x) . | . . . . . Largest Inventory Capacity 8 | . 8 8 8 8 Average Capacity 8 | . 8 8 8 8 Most Carried 8 | . 8 8 8 8 Average Carried 7 | . 7 7 7 7 Final Capacity 8 | 8 8 8 8 8 Final Carried 8 | 6 8 8 8 7 Class Distribution -------------------- 57% | Mutant 31% | Gunner 7% | Sprinter 3% | Scavenger-Mutant Dominant Class ---------------- Mutant | -10/Materials Mutant | -10/Mines Gunner | -9/Materials Mutant | -9/Storage Resources | -11 -10 -10 -9 -9 ----------- Run | Yrd Mat Min Mat Sto Matter Collected 1225 | 191 339 86 144 465 Remotely . | . . . . . Salvage Created 2229 | . 423 120 704 982 Parts 140 | . 35 2 45 58 Haulers Intercepted 5 | . . . 1 4 Recyclers Shooed 1 | . . . . 1 Parts Field Recycled . | . . . . . Retrieved Matter . | . . . . . Parts Self-Destructed . | . . . . . Prevented . | . . . . . Kills | -11 -10 -10 -9 -9 ------- Run | Yrd Mat Min Mat Sto Combat Hostiles Destroyed 47 | . 14 . 11 22 Guns 19 | . 9 . 2 8 Cannons 8 | . 5 . 3 . AOE 19 | . . . 5 14 Classes Destroyed 10 | . 4 . 4 2 Worker 6 | . . . 2 4 Builder 4 | . . . 3 1 Tunneler 1 | . 1 . . . Hauler 5 | . . . 1 4 Recycler 2 | . . . . 2 Operator 1 | . . . . 1 Watcher 3 | . 1 . 1 1 Swarmer 10 | . 6 . . 4 Grunt 31 | . 8 . 8 15 Sentry 6 | . . . 3 3 Best Kill Streak 11 | . 6 . 9 11 Combat Bots Only 6 | . 6 . 4 5 Max Kills in Single Turn 6 | . 2 1 2 6 Gunslinging 1 | . . . . 1 Exploded 3 | . . . 2 3 Melee . | . . . . . Uniques/NPCs Destroyed 1 | . . 1 . . YI-UF0 (-10/Mines) Combat | -11 -10 -10 -9 -9 -------- Run | Yrd Mat Min Mat Sto Hostile Shots Fired 215 | . 81 . 39 95 Missed 64 | . 21 . 11 32 Damage Taken 2093 | . 659 . 406 1028 Core 555 | . 142 . 37 376 Absorbed by Shields 21 | . . . . 21 Regen/Repaired (Parts) 109 | . 18 . 38 53 Core Remaining (%) 71 | 100 . 43 . . Volleys Fired 131 | . 41 10 26 54 Largest 3 | . 2 1 3 3 Hottest 204 | . 85 40 204 135 Shots Fired 206 | . 82 10 46 68 Gun 146 | . 60 10 26 50 Cannon 37 | . 22 . 15 . Launcher 23 | . . . 5 18 Special . | . . . . . Kinetic 54 | . 52 . 2 . Thermal 54 | . 30 . 15 9 Explosive 18 | . . . . 18 Electromagnetic 80 | . . 10 29 41 Robot Hit Streak 14 | . 10 5 7 14 Robot Miss Streak 4 | . 3 1 4 3 Penetration Max . | . . . . . Secondary Targets 4 | . 2 . 1 1 Max Gunslinging Chain 1 | . 1 . 1 1 Shots Hit Robots 136 | . 49 9 26 52 Core Hits 116 | . 24 3 21 68 Critical Kills . | . . . . . Critical Parts Destroyed . | . . . . . Critical Strikes 4 | . 3 . 1 . Burn 3 | . 3 . . . Corrupt 1 | . . . 1 . Melee Attacks . | . . . . . Impact . | . . . . . Slashing . | . . . . . Piercing . | . . . . . Sneak Attacks . | . . . . . Combat Hostiles . | . . . . . Follow-up Attacks . | . . . . . Damage Inflicted 3681 | . 654 170 857 2000 Guns 1341 | . 414 102 235 590 Cannons 467 | . 240 . 227 . Explosions 1868 | . . 68 395 1405 Melee . | . . . . . Ramming 5 | . . . . 5 Kinetic 485 | . 457 . 28 . Thermal 798 | . 197 68 289 244 Explosive 1292 | . . . . 1292 Electromagnetic 1101 | . . 102 540 459 Impact . | . . . . . Slashing . | . . . . . Piercing . | . . . . . Highest Corruption 12 | . . 12 . 2 Average Corruption 3 | . . 11 . 2 Corruption Purged . | . . . . . Corruption Blocked . | . . . . . Effects 4 | . . 2 . 2 Message Errors 1 | . . . . 1 Matter Fused 1 | . . 1 . . Heat Flow Errors 1 | . . 1 . . Data Loss (minor) 1 | . . . . 1 Overload Shots . | . . . . . Overflow Damage 72 | . 2 . . 70 Projectiles 2 | . 2 . . . Explosions 70 | . . . . 70 Melee . | . . . . . Knockbacks 2 | . 2 . . . Impact . | . . . . . Kinetic 2 | . 2 . . . Secondary . | . . . . . Self-Inflicted Damage 324 | . . . 36 288 Shots 10 | . . . 1 9 Rammed 1 | . . . . 1 Targets Rammed 3 | . . . . 3 Kicked 2 | . . . . 2 Crushed . | . . . . . Highest Temperature 513 | . 399 181 513 87 Average Temperature 109 | . 153 59 155 31 Received Heat Transfer 730 | . 306 . 93 331 Effects 11 | . 5 . 6 . Shutdowns 2 | . 1 . 1 . Energy Bleed 3 | . 3 . . . Interference 2 | . . . 2 . Short Circuit 2 | . 1 . 1 . Damage (minor) 2 | . . . 2 . Siege Activations . | . . . . . Robots Corrupted 4 | . . 1 2 1 Combat Hostiles 1 | . . . 1 . Parts Fried 10 | . . 1 6 3 Impact Corruptions . | . . . . . Robots Melted . | . . . . . Combat Hostiles . | . . . . . Parts Melted 1 | . . . 1 . Heat Transferred 1631 | . 814 50 457 310 Parts Sabotaged . | . . . . . Parts Stolen . | . . . . . Parts Stripped . | . . . . . Power Chain Reactions 4 | . . 1 1 2 Alert | -11 -10 -10 -9 -9 ------- Run | Yrd Mat Min Mat Sto Peak Influence 718 | . 316 61 440 718 Initial 181 | . . 58 23 181 Average 240 | . 117 58 248 348 Maximum Alert Level 3 | . 1 . 2 3 Low Security (%) 47 | . 89 100 33 17 Level 1 32 | . 10 . 56 43 Level 2 19 | . . . 9 37 Level 3 . | . . . . . Level 4 . | . . . . . Level 5 . | . . . . . High Security . | . . . . . Max Security . | . . . . . Squads Dispatched 13 | . 2 . 3 8 Investigation 7 | . 1 . 1 5 Extermination . | . . . . . Reinforcement 5 | . 1 . 2 2 Assault . | . . . . . Garrison 1 | . . . . 1 Intercept . | . . . . . Searches Triggered . | . . . . . Construction Impeded 2 | . . . 1 1 Haulers Reinforced . | . . . . . Active Scanning Responses . | . . . . . Cargo Convoy Interrupts . | . . . . . Stealth | -11 -10 -10 -9 -9 --------- Run | Yrd Mat Min Mat Sto Distress Signals 6 | . 1 . 2 3 Communications Jammed . | . . . . . Distress Signals . | . . . . . Times Spotted 80 | . 21 . 22 37 Peak Tracking Total 8 | . 8 . 5 8 Tactical Retreats 4 | . 1 . . 3 Traps | -11 -10 -10 -9 -9 ------- Run | Yrd Mat Min Mat Sto Traps Triggered 4 | . . . . 4 Indirectly . | . . . . . Trap Hack Attempts . | . . . . . Triggered . | . . . . . Disarmed . | . . . . . Reprogrammed . | . . . . . Reused . | . . . . . Traps Extracted . | . . . . . Installed . | . . . . . Triggered 1 | . . . . 1 Machines | -11 -10 -10 -9 -9 ---------- Run | Yrd Mat Min Mat Sto Machines Disabled 8 | . . . 3 5 Max in Single Turn 1 | . . . 1 1 Machines Repaired . | . . . . . Machines Dismantled . | . . . . . Machines Sabotaged . | . . . . . Overloaded Fab Kills . | . . . . . Hacking | -11 -10 -10 -9 -9 --------- Run | Yrd Mat Min Mat Sto Machines Accessed 15 | . 6 . 2 7 Terminals 10 | . 4 . 1 5 Fabricators . | . . . . . Repair Stations 4 | . 1 . 1 2 Recycling Units 1 | . 1 . . . Scanalyzers . | . . . . . Garrison Access . | . . . . . Total Hacks 39 | . 17 . 3 19 Successful 21 | . 8 . 3 10 Failed 18 | . 9 . . 9 Catastrophic 4 | . 2 . . 2 Database Lockouts . | . . . . . Manual 18 | . 8 . 2 8 Terminals 25 | . 11 . 1 13 Fabricators . | . . . . . Repair Stations 11 | . 3 . 2 6 Recycling Units 3 | . 3 . . . Scanalyzers . | . . . . . Garrison Access . | . . . . . Terminal Hacks 7 | . 3 . . 4 Part Schematic 1 | . . . . 1 Robot Analysis 1 | . 1 . . . Open Door 1 | . . . . 1 Alert Level 2 | . 1 . . 1 Unreport Threat 1 | . . . . 1 Patrol Status 1 | . 1 . . . Fabricator Hacks . | . . . . . Repair Station Hacks 10 | . 3 . 2 5 Scan Component 6 | . 2 . 1 3 Repair 4 | . 1 . 1 2 Recycling Unit Hacks 2 | . 2 . . . Process 1 | . 1 . . . Retrieve Matter 1 | . 1 . . . Scanalyzer . | . . . . . Garrison Access Hacks . | . . . . . Unauthorized Hacks 2 | . . . 1 1 Terminals 2 | . . . 1 1 Disrupt 1 | . . . . 1 Sabotage 1 | . . . 1 . Fabricators . | . . . . . Repair Stations . | . . . . . Recycling Units . | . . . . . Scanalyzers . | . . . . . Garrison Access . | . . . . . Data Cores Recovered . | . . . . . Used . | . . . . . Hacking Detections 9 | . 3 . 1 5 Full Trace Events 7 | . 2 . . 5 Feedback Events . | . . . . . Feedback Blocked . | . . . . . Robot Schematics Acquired . | . . . . . Robots Built . | . . . . . Authchips . | . . . . . Time . | . . . . . Total Robot Build Rating . | . . . . . Part Schematics Acquired 1 | . . . . 1 Parts Built . | . . . . . Authchips . | . . . . . Time . | . . . . . Total Part Build Rating . | . . . . . Parts Repaired 4 | . 1 . 1 2 Time 203 | . 26 . 18 159 Parts Recycled . | . . . . . Recycled Matter 158 | . 158 . . . Retrieved Matter 236 | . 236 . . . Retrieved Components . | . . . . . Parts Scanalyzed . | . . . . . Part Schematics Acquired . | . . . . . Parts Damaged . | . . . . . Bothacking | -11 -10 -10 -9 -9 ------------ Run | Yrd Mat Min Mat Sto Used RIF Installer . | . . . . . Robots Hacked . | . . . . . Non-combat . | . . . . . Combat . | . . . . . Robot Hacks Applied . | . . . . . Relay Couplers Released . | . . . . . Fabnet Peak Effective % . | . . . . . Robots Rewired . | . . . . . Allies Hacked . | . . . . . Hacks Repelled . | . . . . . Allies | -11 -10 -10 -9 -9 -------- Run | Yrd Mat Min Mat Sto Total Allies 1 | . . 1 . . Largest Group 1 | . . 1 1 . Highest-Rated Group 31 | . . 31 31 . Highest-Rated Ally 31 | . . 31 31 . Total Orders . | . . . . . Ally Attacks 3 | . . . 3 . Total Damage 40 | . . . 40 . Kills . | . . . . . Allies Corrupted . | . . . . . Allies Melted . | . . . . . Intel | -11 -10 -10 -9 -9 ------- Run | Yrd Mat Min Mat Sto Robot Analysis Total 1 | . 1 . . . Derelict Logs Recovered . | . . . . . Drone Launches . | . . . . . Drone Recoveries . | . . . . . Exploration | -11 -10 -10 -9 -9 ------------- Run | Yrd Mat Min Mat Sto Turns Passed 1657 | . 437 173 273 774 Spaces Moved 999 | 1 245 167 142 444 Core 8 | . . . . 8 Treads . | . . . . . Legs 515 | 1 186 . 117 211 Wheels 251 | . 59 167 25 . Hover 78 | . . . . 78 Flight 147 | . . . . 147 Fastest Speed 32 | 120 80 80 80 32 Average Speed 93 | 120 110 80 115 81 Slowest Speed 195 | 120 120 80 190 195 Overloaded Moves . | . . . . . Propulsion Burnouts . | . . . . . Robots Hopped 4 | . . . . 4 Cave-ins Triggered . | . . . . . Exploration Rate (%) 37 | 2 48 46 25 64 Regions Visited 4 Branch Regions 2 Pre-discovered Areas . | . . . . . Known Exits Taken . | . . . . . Unknown Exits Taken 4 | 1 1 1 1 . Scrap Searched 1 | . . 1 . . Spaces Dug . | . . . . . Terrain Destroyed 144 | . . 3 5 136 Melee . | . . . . . Projectile . | . . . . . AOE 144 | . . 3 5 136 Terrain Rammed . | . . . . . Walls Destroyed . | . . . . . Machines Disabled . | . . . . . Actions | -11 -10 -10 -9 -9 --------- Run | Yrd Mat Min Mat Sto Total 1522 | . 329 196 211 786 Wait 262 | . 29 7 19 207 Move 987 | . 244 166 141 436 Hop 4 | . . . . 4 Pick Up 7 | . 3 1 1 2 Fast Attach 38 | . 5 3 12 18 Attach 9 | . . 4 . 5 Detach 9 | . 1 3 2 3 Swap 11 | . 3 1 . 7 Drop 28 | . 3 1 10 14 Fire 131 | . 41 10 26 54 Melee . | . . . . . Ram 1 | . . . . 1 Kick 2 | . . . . 2 Crush . | . . . . . Escape Stasis 33 | . . . . 33 Rewire . | . . . . . Trap . | . . . . . Miscellaneous . | . . . . . Route ------- -11/Scrapyard -10/Materials (discovered 3 exits: *Mat x2 / [*Min]) -10/Mines -9/Materials (discovered 2 exits: [*Mat] / *Sto) -9/Storage (discovered 1 exit: [*Mat]) History --------- Turn | Location | Event 1 | -11/Scrapyard | Discovered new exit (range 0) 1 | -11/Scrapyard | Entered Materials 165 | -10/Materials | Repaired Ion Engine 207 | -10/Materials | Discovered new exit (range 7) 287 | -10/Materials | Discovered new exit (range 15) 300 | -10/Materials | Build established: Mutant 390 | -10/Materials | Core integrity fell below 50% 403 | -10/Materials | Lost 4 parts (1p1n1u1w) 429 | -10/Materials | Discovered new exit (range 6) 438 | -10/Materials | Entered Mines 441 | -10/Mines | Received a Mining Laser from a helpful Derelict 489 | -10/Mines | Found a damaged Exp. Sensor Array with a note attached 490 | -10/Mines | Found Prototype Device 490 | -10/Mines | Identified Exp. Sensor Array 539 | -10/Mines | Discovered new exit (range 11) 552 | -10/Mines | YI-UF0 nonchalantly dropped a Grenade Launcher on the ground 575 | -10/Mines | Murdered YI-UF0 575 | -10/Mines | Destroyed YI-UF0 583 | -10/Mines | Found Corrupted Prototype Launcher 583 | -10/Mines | Identified YI-UF0's Doublenader 588 | -10/Mines | System corruption reached 10% 611 | -10/Mines | Entered Materials 611 | -9/Materials | Accompanied by 1 ally 611 | -9/Materials | Evolved 2 slots: Utility x1, Weapon x1 798 | -9/Materials | Repaired Broken Aluminum Leg 866 | -9/Materials | Discovered new exit (range 13) 877 | -9/Materials | Discovered new exit (range 11) 884 | -9/Materials | Entered Storage 917 | -9/Storage | Build established: Gunner 1042 | -9/Storage | Repaired Exp. Sensor Array 1142 | -9/Storage | Repaired Imp. EM Shotgun 1359 | -9/Storage | Core integrity fell below 50% 1406 | -9/Storage | Lost 5 parts (1p3n1w) 1536 | -9/Storage | Discovered new exit (range 18) 1546 | -9/Storage | Core integrity fell below 20% 1621 | -9/Storage | Garrison activated, responded to threat 1658 | -9/Storage | Destroyed self with Grenade Launcher Last Messages --------------- 01643_ U-05 Engineer builds a Wall. 01644_ Field strength at 35. 01644_ R-06 Scavenger collects Ion Engine. 01645_ Field strength at 30. 01645_ K-01 Serf collects debris. 01646_ The unstable cave ceiling collapses. 01646_ Field strength at 25. 01647_ Field strength at 20. 01647_ U-05 Engineer lays Concrete. 01648_ Field strength at 15. 01648_ U-05 Engineer lays Concrete. 01649_ Field strength at 10. 01649_ K-01 Serf collects debris. 01649_ U-05 Engineer lays Concrete. 01650_ Field strength at 5. 01651_ Stasis field depleted. 01651_ W-16 Scout sends out distress signal. 01656_ C-30 ARC bursts open, deploying its payload. 01656_ G-47 Trooper unfolds itself. 01656_ G-34 Mercenary unfolds itself. Map ----- +----------------------------------------------------+ | | | | | ????????????????#######??????????????????????????? | | ???????????????# ????????????????????????? | | ???????????????# ????????????????????????? | | ???????????????# !?????????????????????????? | | ???????????????# ?????????????????????????? | | ??????????????## ??##??????????????????????? | | ""##??????????# """ ""??# ########??????????????? | | T#?????????### """ "???# / #?????????????? | | #???????# ## """ "???# +?????????????? | | +########## #### """ """ #??#??????????? | | # """ """ #? #??????????? | | *%! ! ^ + """ """ # ##?????????? | | [ % # """ """ / ??????????? | | ########### #= ## # """ """ #?????????????? | | ??????????## # # % ?# # #?????????????? | | ????????????# #?#+######+####?????????????? | | ????????????### ?????? ## #????????????????? | | ??????????????### "# ??????" ## #????????????????? | | #####?????????+ T# ??????" ## #???? ##?????????? | | #! !#?????????# "# ??????" ## ### #?????????? | | #! !#?????????# ## """""" + #?????????? | | #! !#?????????# ?# # #?????????? | | # !#?????????+ ?# # ### #?????????? | | #" "#?????????? ?# @ # #???####?????????? | | T #?????????? ?########### #????????????????? | | # ! ##????????? ???????????# #????????????????? | | ##+###????????? ???????????# +????????????????? | | ##?????????? ???????????# #????????????????? | | #??###???????????????????# #????????????????? | | #?! ????????????????????# +????????????????? | | # ???????????????????# #????????????????? | | # """ "??????????????????#% #????????????????? | | # """ ""????????????????? ????????????????? | | # """ """???????????????? ????????????????? | | # " """ ??????????????? T ????????????????? | | # " """ #?????????????? ????????????????? | | #% #??????????????##+#????????????????? | | # # ### ##??????????????????????????????????? | | # ## ????????????????????????????????????????? | | # ?????????????????????????????????????????? | | # # #?????????????????????????????????????????? | | # #?????????????????????????????????????????? | | # % ###?????????????????????????????????????????? | | #???????????????????????????????????????????? | | #???????????????????????????????????????????? | | # ##???????????????????????????????????????????? | | # #????????????????????????????????????????????? | | # #?????? ?????????????????????????????????????? | +----------------------------------------------------+ Best States ------------- Heat Dissipation 28 Energy Generation 12 Energy Capacity 265 Matter Stores 300 Matter Capacity 300 Sight Range 18 Robot Scan Range 20 Terrain Scan Density 10 ECM Strength 1 Resistance: EX 25 Evasion (%) 63 Targeting Accuracy 5 Item Schematics ----------------- Imp. Flight Unit | -9/Storage | Hacked Robot Schematics ------------------ None Fabricated ------------ Nothing Alien Tech Used ----------------- None Achievements -------------- None Challenges ------------ None Game ------ Seed WeaponsSubatomicAnalyzer Manual? 0 Play Time 00:16:15 Cumulative 788.5 hours Start 2024.07.08 @ 20:32:11 End 2024.07.09 @ 00:12:48 Sessions 3 Manual Loads 0 Difficulty Rogue Special Mode None Game No. 911 Rogue 633 Adventurer 124 Explorer 154 Win Type - Total 31 Types 25/0/4/1/0/0/0/1/0 Lore% 84 Gallery% 92 Achievement% 77 Wizard Run 0 Options --------- Layout 0 ASCII 0 Keyboard 1 Movement Numpad Keybinds 0 Fullscreen 2 Font 18/Smallcaps Map View 76x50 Zoom Use 0% Tactical HUD 1 Map Filters NONE Filters NONE Steam 1 RUN: 344aa3bd-1fa9-4a15-b5ac-af60b5df55ca